Cogmind - Beta 14 @@@ ROGUE MODE // 2024.10.31 @ 05:41:53 Player: arkn Result: Destroyed by S-43 Plague with Heavy Machine Gun Performance ------------- Evolutions (9) 4500 Regions Visited (14) 2800 Robots Destroyed (134) 670 Value Destroyed (4407) 4407 Prototype IDs (5) 100 Alien Tech Used (0) 0 Bonus (62) 62 TOTAL SCORE: 12539 Bonus ------- High Alert Combat Kills 90 Follower Combat Kills 35 Friendly Fire -63 Cogmind --------- Core Integrity 0/1600 Matter 34/300 Energy 75/100 System Corruption 0% Temperature Cool (0) Movement Core (250) Ox4 Location -1/Access Parts ------- > --- POWER (2) -------- (None) > --- PROPULSION (6) --- (None) > --- UTILITY (13) ----- Improved Salvage Targeting Computer Armor Integrity Analyzer > --- WEAPON (4) ------- Enhanced Nova Cannon > --- INVENTORY (5) ---- Light Quantum Reactor Centrium Leg Compact Battery (200) Improved Plasma Cutter Signal Generator Peak State ------------ > --- POWER ------------ Reinforced Deuterium Engine Micro Fission Core > --- PROPULSION ------- Armored Huge Wheel Armored Huge Wheel > --- UTILITY ---------- Advanced Heat Sink Large Storage Unit Improved Signal Interpreter Improved Target Analyzer Armor Integrity Analyzer Improved Kinecellerator Layered Light Armor Plating Medium Reflective Plating Dynamic Insulation System > --- WEAPON ----------- Gauss Rifle KE Penetrator Mass Driver Mass Driver > --- INVENTORY -------- Enhanced Fission Core Advanced Cryofiber Web Improved Kinecellerator Improved Transmission Jammer Advanced ECM Suite Layered Light Armor Plating Drone Bay Hardcell Cannon Welding Torch Improved Plasma Cutter Powered Hammer Great Axe Signal Generator [Rating: 90] Favorites ----------- Power Ion Engine Engine Ion Engine Power Core Light Nuclear Core Reactor Micro Antimatter Reactor Propulsion Armored Huge Wheel Treads Advanced Medium Treads Leg Aluminum Leg Wheel Armored Huge Wheel Hover Unit Improved Linear Gravjet Flight Unit Impulse Thruster Array Utility Large Storage Unit Device Seismic Detector Storage Large Storage Unit Processor Armor Integrity Analyzer Protection Improved Light Armor Plating Weapon EM Pulse Gun Energy Gun EM Pulse Gun Energy Cannon Heavy Ion Cannon Ballistic Gun KE Penetrator Ballistic Cannon Gauss Cannon Special Weapon Mining Laser Slashing Weapon Great Axe Build | -11 -10 -10 -10 -9 -8 -7 -6 -5 -4 -4 -4 -3 -2 -1 ------- Run | Yrd Mat Min Exi Min Mat Fac Fac Fac Fac Was Fac Res Res Acc Slots Evolved 18 | . . . . . 4 2 2 2 2 . . 2 2 2 Power 1 | . . . . . . . . . 1 . . . . . Propulsion 4 | . . . . . 2 . . . . . . 2 . . Utility 11 | . . . . . 2 1 1 2 1 . . . 2 2 Weapon 2 | . . . . . . 1 1 . . . . . . . Parts Attached 163 | 1 7 7 2 1 50 16 22 28 4 2 7 7 3 6 Power 14 | . . . . . 6 2 . 2 1 . 1 1 . 1 Engine 8 | . . . . . 5 2 . 1 . . . . . . Core 4 | . . . . . 1 . . 1 1 . 1 . . . Reactor 2 | . . . . . . . . . . . . 1 . 1 Propulsion 29 | . 1 4 . . 9 . 3 3 . 1 2 2 1 3 Treads 1 | . . . . . . . . . . . . 1 . . Leg 5 | . 1 . . . . . . . . . . 1 . 3 Wheel 21 | . . 4 . . 9 . 3 3 . 1 1 . . . Hover 1 | . . . . . . . . . . . 1 . . . Flight 1 | . . . . . . . . . . . . . 1 . Utility 65 | 1 2 1 . 1 20 3 8 19 2 1 3 2 1 1 Device 40 | 1 1 . . 1 12 2 4 11 1 1 3 1 1 1 Storage 4 | . . 1 . . 3 . . . . . . . . . Processor 9 | . . . . . 1 1 3 3 . . . 1 . . Hackware . | . . . . . . . . . . . . . . . Protection 12 | . 1 . . . 4 . 1 5 1 . . . . . Artifact . | . . . . . . . . . . . . . . . Weapon 55 | . 4 2 2 . 15 11 11 4 1 . 1 2 1 1 Energy Gun 13 | . 2 2 2 . 7 . . . . . . . . . Energy Cannon 13 | . . . . . 3 5 3 . . . . . 1 1 Ballistic Gun 11 | . 1 . . . 2 1 5 2 . . . . . . Ballistic Cannon 11 | . . . . . 1 2 2 2 1 . 1 2 . . Launcher . | . . . . . . . . . . . . . . . Special Weapon 3 | . 1 . . . 2 . . . . . . . . . Impact Weapon . | . . . . . . . . . . . . . . . Slashing Weapon 4 | . . . . . . 3 1 . . . . . . . Piercing Weapon . | . . . . . . . . . . . . . . . Special Melee Weapon . | . . . . . . . . . . . . . . . Unidentified Prototypes 5 | . . . . . 2 . 1 1 . . 1 . . . Corrupted Parts 1 | . . . . . 1 . . . . . . . . . System Corruption 4 | . . . . . 4 . . . . . . . . . Parts Lost 63 | . 1 1 . . 17 . 6 10 5 7 5 3 1 7 Power 5 | . . . . . 3 . . 1 . 1 . . . . Propulsion 19 | . . . . . 6 . 2 1 . 2 2 2 . 4 Utility 24 | . 1 . . . 4 . 3 6 2 3 2 . . 3 Weapon 15 | . . 1 . . 4 . 1 2 3 1 1 1 1 . Highest Loss Streak 7 | . 1 1 . . 5 . 3 4 3 7 5 3 1 4 To Critical Strikes 1 | . . . . . . . . . . 1 . . . . Average Slot Usage (%) 80 | . 100 99 82 100 84 84 84 86 86 47 11 24 17 24 Engine 7 | . 14 14 14 14 8 7 6 1 5 3 . . . . Leg 4 | . 28 10 . . . . . . . . . 3 . . Wheel 12 | . . 17 28 28 22 15 12 10 10 6 . . . . Device 13 | . 7 14 14 14 18 19 11 16 15 9 5 2 4 9 Storage 8 | . 14 14 14 14 11 7 6 5 5 3 . . . . Processor 5 | . . . . . 2 3 13 16 15 11 5 7 8 8 Protection 3 | . 6 . . . 2 7 6 5 9 2 . . . . Energy Gun 7 | . 16 27 11 28 9 . . . . . . . . . Energy Cannon 3 | . . . . . 6 15 7 . . . . . 2 . Ballistic Gun 3 | . 9 . . . 1 1 4 8 8 . . . . . Ballistic Cannon 2 | . . . . . . . 7 7 9 6 . 6 . . Slashing Weapon 1 | . . . . . . 4 4 4 . . . . . . Peak Build Rating 90 | 7 7 9 9 10 43 52 65 79 90 77 34 47 43 56 Average Rating 36 | 6 6 8 7 9 28 51 60 71 86 50 15 34 30 47 On Entrance 28 | 6 7 7 9 9 10 43 52 53 79 77 7 7 18 41 Naked Turns . | . . . . . . . . . . . . . . . Heaviest Build 86 | 15 17 21 21 22 53 64 69 77 86 70 11 33 14 13 Greatest Support 84 | 20 20 26 26 26 64 56 56 56 56 56 10 30 16 84 Greatest Overweight (x) 4 | . . . . . 1 1 2 2 1 1 1 1 4 3 Average Overweight (x) . | . . . . . . . 1 . 1 . . . . . Largest Inventory Capacity 15 | 8 8 10 10 10 15 15 15 15 15 15 5 5 5 5 Average Capacity 11 | 8 8 9 10 10 11 15 15 15 15 11 5 5 5 5 Most Carried 15 | 8 8 10 10 10 15 15 15 15 15 14 5 5 5 5 Average Carried 10 | 6 7 9 10 9 11 14 14 13 13 10 4 4 4 4 Final Capacity 15 | 8 8 10 10 10 15 15 15 15 15 5 5 5 5 5 Final Carried 15 | 8 7 10 10 10 15 15 15 15 14 5 5 5 5 5 Class Distribution -------------------- 58% | Mutant 15% | Scavenger-Gunner 13% | Scavenger-Mutant 7% | Gunner 5% | Tank Dominant Class ---------------- Mutant | -10/Materials Mutant | -10/Mines Mutant | -10/Exiles Mutant | -9/Mines Scavenger-Mutant | -8/Materials Mutant | -7/Factory Gunner | -6/Factory Scavenger-Gunner | -5/Factory Scavenger-Gunner | -4/Factory Scavenger-Mutant | -4/Waste Mutant | -4/Factory Mutant | -3/Research Mutant | -2/Research Mutant | -1/Access Resources | -11 -10 -10 -10 -9 -8 -7 -6 -5 -4 -4 -4 -3 -2 -1 ----------- Run | Yrd Mat Min Exi Min Mat Fac Fac Fac Fac Was Fac Res Res Acc Matter Collected 2952 | 231 216 117 . 77 574 218 317 827 115 . 168 57 35 . Remotely . | . . . . . . . . . . . . . . . Salvage Created 5557 | 93 677 263 . 47 2048 650 796 756 87 . 96 44 . . Parts 327 | 9 46 19 . 1 105 41 42 51 1 . 7 5 . . Haulers Intercepted 9 | . 2 . . . 3 2 2 . . . . . . . Recyclers Shooed 3 | . . . . . 2 . . 1 . . . . . . Parts Field Recycled . | . . . . . . . . . . . . . . . Retrieved Matter . | . . . . . . . . . . . . . . . Parts Self-Destructed . | . . . . . . . . . . . . . . . Prevented . | . . . . . . . . . . . . . . . Kills | -11 -10 -10 -10 -9 -8 -7 -6 -5 -4 -4 -4 -3 -2 -1 ------- Run | Yrd Mat Min Exi Min Mat Fac Fac Fac Fac Was Fac Res Res Acc Combat Hostiles Destroyed 91 | . 14 6 . 1 32 9 8 15 2 . 3 1 . . Melee 4 | . . . . . . . 1 3 . . . . . . Guns 42 | . 12 6 . 1 14 . 4 5 . . . . . . Cannons 40 | . . . . . 15 9 3 7 2 . 3 1 . . AOE 3 | . 2 . . . 1 . . . . . . . . . Classes Destroyed 16 | 2 5 . . . 5 1 1 2 . . . . . . Worker 8 | . 2 . . . 2 . 4 . . . . . . . Builder 4 | . . . . . 1 . 3 . . . . . . . Tunneler 6 | 2 1 1 . . 1 . 1 . . . . . . . Hauler 9 | . 2 . . . 3 2 2 . . . . . . . Recycler 6 | 1 . 1 . . 2 . 1 1 . . . . . . Operator 1 | . . . . . . . . 1 . . . . . . Watcher 9 | . 2 . . . 4 2 . 1 . . . . . . Swarmer 22 | . 6 5 . . 3 . 1 5 . . 2 . . . Grunt 37 | . 8 1 . 1 18 2 3 1 2 . 1 . . . Brawler 2 | . . . . . 1 . 1 . . . . . . . Duelist 1 | . . . . . . . 1 . . . . . . . Sentry 13 | . . . . . 7 4 1 1 . . . . . . Specialist 2 | . . . . . 2 . . . . . . . . . Hunter 2 | . . . . . 1 . . 1 . . . . . . Programmer 11 | . . . . . . 3 1 6 . . . 1 . . Behemoth 1 | . . . . . . . . 1 . . . . . . Best Kill Streak 10 | 2 5 4 . 1 4 2 10 4 2 . 3 1 . . Combat Bots Only 4 | . 3 3 . 1 3 2 3 4 2 . 3 1 . . Max Kills in Single Turn 3 | 1 2 1 . 1 1 1 3 2 1 . 1 1 . . Gunslinging . | . . . . . . . . . . . . . . . Exploded 1 | . 1 . . . 1 . . . . . . . . . Melee 1 | . . . . . . . 1 1 . . . . . . Uniques/NPCs Destroyed . | . . . . . . . . . . . . . . . Combat | -11 -10 -10 -10 -9 -8 -7 -6 -5 -4 -4 -4 -3 -2 -1 -------- Run | Yrd Mat Min Exi Min Mat Fac Fac Fac Fac Was Fac Res Res Acc Hostile Shots Fired 1144 | . 65 17 . 3 194 143 94 124 94 5 122 79 26 178 Missed 375 | . 18 7 . 1 57 52 19 37 24 . 57 29 7 67 Damage Taken 12827 | . 447 87 . 14 2045 586 1164 1659 1191 266 1147 1187 512 2522 Core 4030 | . 85 17 . . 461 61 197 156 88 69 724 332 238 1602 Absorbed by Shields 778 | . . . . 6 245 249 193 85 . . . . . . Redirected to Shielding 42 | . . . . . 42 . . . . . . . . . Ignored by Resistances 188 | . . . . . . . . . 188 . . . . . Regen/Repaired (Parts) 38 | . . . . . 38 . . . . . . . . . Core Remaining (%) 67 | 100 . . . 59 16 91 76 84 . . 23 74 83 . Volleys Fired 347 | 7 68 17 . 3 121 37 23 36 15 . 7 10 3 . Largest 4 | 2 2 2 . 2 2 3 4 4 4 . 1 2 1 . Hottest 195 | 60 100 80 . 105 169 195 178 166 175 . 65 132 120 . Shots Fired 735 | 14 118 35 . 6 230 84 81 108 37 . 7 12 3 . Gun 408 | 14 107 35 . 6 140 7 32 55 12 . . . . . Cannon 314 | . . . . . 88 77 49 53 25 . 7 12 3 . Launcher . | . . . . . . . . . . . . . . . Special 13 | . 11 . . . 2 . . . . . . . . . Kinetic 308 | 7 42 . . . 17 9 69 108 37 . 7 12 . . Thermal 300 | . 11 . . 3 196 75 12 . . . . . 3 . Explosive . | . . . . . . . . . . . . . . . Electromagnetic 127 | 7 65 35 . 3 17 . . . . . . . . . Robot Hit Streak 23 | 3 7 4 . 3 23 10 13 7 3 . 4 5 . . Robot Miss Streak 5 | 1 3 2 . 1 3 3 5 5 4 . 2 1 3 . Penetration Max 1 | . . . . . . . 1 1 . . . . . . Secondary Targets 8 | . 4 . . . 4 . . . . . . . . . Max Gunslinging Chain 1 | . 1 . . . 1 . . . . . . . . . Shots Hit Robots 436 | 7 57 17 . 4 158 54 49 65 13 . 5 7 . . Core Hits 202 | 4 27 10 . 2 68 20 27 31 6 . 4 3 . . Critical Kills 5 | . 1 . . . 1 . . 2 . . . 1 . . Critical Parts Destroyed 7 | . . . . . . . . 2 . . . 5 . . Critical Strikes 33 | . 2 . . . 10 1 5 9 . . . 6 . . Burn 9 | . . . . . 9 . . . . . . . . . Meltdown 1 | . . . . . 1 . . . . . . . . . Destroy 11 | . 1 . . . . . . 4 . . . 6 . . Blast 10 | . . . . . . . 5 5 . . . . . . Corrupt 1 | . 1 . . . . . . . . . . . . . Sever 1 | . . . . . . 1 . . . . . . . . Melee Attacks 29 | . . . . . . 8 11 10 . . . . . . Impact . | . . . . . . . . . . . . . . . Slashing 29 | . . . . . . 8 11 10 . . . . . . Piercing . | . . . . . . . . . . . . . . . Sneak Attacks 5 | . . . . . . . 3 2 . . . . . . Combat Hostiles . | . . . . . . . . . . . . . . . Follow-up Attacks . | . . . . . . . . . . . . . . . Damage Inflicted 10793 | 103 939 211 . 55 3162 1467 1713 2061 709 . 185 173 . 15 Guns 4345 | 103 746 211 . 55 1751 90 405 862 122 . . . . . Cannons 5293 | . . . . . 1288 1344 916 848 573 . 176 148 . . Explosions 292 | . 193 . . . 99 . . . . . . . . . Melee 776 | . . . . . . 33 392 351 . . . . . . Ramming 63 | . . . . . . . . . 14 . 9 25 . 15 Kinetic 4462 | 48 308 . . . 204 117 1056 1710 695 . 176 148 . . Thermal 4592 | . 193 . . 42 2775 1317 265 . . . . . . . Explosive . | . . . . . . . . . . . . . . . Electromagnetic 900 | 55 438 211 . 13 183 . . . . . . . . . Impact . | . . . . . . . . . . . . . . . Slashing 776 | . . . . . . 33 392 351 . . . . . . Piercing . | . . . . . . . . . . . . . . . Highest Corruption 27 | . 4 4 4 4 5 3 . 4 1 19 27 11 . . Average Corruption 5 | . 3 4 4 4 4 2 . 1 1 11 20 6 . . Corruption Purged 5 | . . . . . . . . 5 . . . . . . Corruption Blocked . | . . . . . . . . . . . . . . . Effects 134 | . 19 20 9 4 41 5 . 4 2 6 22 2 . . Message Errors 32 | . 6 5 1 1 6 . . 2 1 3 5 2 . . Matter Fused 32 | . 4 5 4 2 12 2 . . . . 3 . . . Heat Flow Errors 13 | . 3 3 . . 3 . . . . . 4 . . . Energy Discharges 16 | . 3 3 1 1 4 1 . 1 . . 2 . . . Parts Rejected 4 | . . . . . 2 . . . . 2 . . . . Parts Fused 2 | . . . . . 2 . . . . . . . . . Data Loss (minor) 19 | . 1 1 2 . 8 1 . . 1 . 5 . . . Data Loss (major) 3 | . . . 1 . . 1 . . . . 1 . . . Misfires 4 | . . 3 . . 1 . . . . . . . . . Alerts 4 | . 2 . . . 1 . . . . . 1 . . . Misdirections 2 | . . . . . . . . . . 1 1 . . . Weapon Failures 3 | . . . . . 2 . . 1 . . . . . . Overload Shots . | . . . . . . . . . . . . . . . Overflow Damage 167 | . 28 . . . 42 10 . 87 . . . . . . Projectiles 96 | . . . . . 42 10 . 44 . . . . . . Explosions 28 | . 28 . . . . . . . . . . . . . Melee 43 | . . . . . . . . 43 . . . . . . Knockbacks 25 | . . . . . . . 7 5 11 . . 2 . . Impact . | . . . . . . . . . . . . . . . Kinetic 25 | . . . . . . . 7 5 11 . . 2 . . Secondary . | . . . . . . . . . . . . . . . Self-Inflicted Damage 167 | . 27 . . . 121 . . . 7 . 4 6 . 2 Shots 4 | . 1 . . . 3 . . . . . . . . . Rammed 21 | . . . . . . . . . 1 . 2 15 . 3 Targets Rammed 26 | . . . . . . . . . 1 . 2 15 . 8 Kicked 5 | . . . . . . . . . . . . . . 5 Crushed . | . . . . . . . . . . . . . . . Highest Temperature 355 | . 201 271 . 143 355 50 351 173 220 . 225 . 84 . Average Temperature 77 | . 47 69 . 72 99 21 114 48 84 . 86 . 47 . Received Heat Transfer 2110 | . 105 12 . 8 861 146 271 52 343 . 132 . . 180 Effects 2 | . . . . . 1 . 1 . . . . . . . Shutdowns 1 | . . . . . 1 . . . . . . . . . Energy Bleed 1 | . . . . . . . 1 . . . . . . . Siege Activations . | . . . . . . . . . . . . . . . Robots Corrupted . | . . . . . . . . . . . . . . . Combat Hostiles . | . . . . . . . . . . . . . . . Parts Fried . | . . . . . . . . . . . . . . . Impact Corruptions . | . . . . . . . . . . . . . . . Robots Melted 2 | . . . . . 2 . . . . . . . . . Combat Hostiles 2 | . . . . . 2 . . . . . . . . . Parts Melted 13 | . . . . . 9 3 1 . . . . . . . Heat Transferred 8109 | . 200 . . 111 5650 1778 370 . . . . . . . Parts Sabotaged . | . . . . . . . . . . . . . . . Parts Stolen . | . . . . . . . . . . . . . . . Parts Stripped . | . . . . . . . . . . . . . . . Power Chain Reactions 4 | . 3 . . . 1 . . . . . . . . . Alert | -11 -10 -10 -10 -9 -8 -7 -6 -5 -4 -4 -4 -3 -2 -1 ------- Run | Yrd Mat Min Exi Min Mat Fac Fac Fac Fac Was Fac Res Res Acc Peak Influence 624 | 15 290 173 . 53 624 336 217 381 139 57 304 165 33 28 Initial 283 | . 9 78 . . 20 283 107 105 84 42 . 135 . 13 Average 146 | 7 136 94 . 5 212 181 112 161 96 32 209 132 8 23 Maximum Alert Level 2 | . 1 . . . 2 1 1 1 . . 1 . . . Low Security (%) 76 | 100 73 100 . 100 59 62 97 81 100 100 18 100 100 100 Level 1 20 | . 26 . . . 23 37 2 18 . . 81 . . . Level 2 3 | . . . . . 17 . . . . . . . . . Level 3 . | . . . . . . . . . . . . . . . Level 4 . | . . . . . . . . . . . . . . . Level 5 . | . . . . . . . . . . . . . . . High Security . | . . . . . . . . . . . . . . . Max Security . | . . . . . . . . . . . . . . . Squads Dispatched 34 | . 2 . . . 6 4 4 7 2 . 5 1 2 1 Investigation 14 | . 2 . . . 4 1 1 1 1 . 3 . 1 . Extermination 8 | . . . . . . 3 . 2 1 . 1 1 . . Reinforcement 9 | . . . . . 2 . 3 1 . . 1 . 1 1 Assault . | . . . . . . . . . . . . . . . Garrison 3 | . . . . . . . . 3 . . . . . . Intercept . | . . . . . . . . . . . . . . . Searches Triggered . | . . . . . . . . . . . . . . . Construction Impeded 1 | . . . . . . . 1 . . . . . . . Haulers Reinforced . | . . . . . . . . . . . . . . . Active Scanning Responses . | . . . . . . . . . . . . . . . Cargo Convoy Interrupts . | . . . . . . . . . . . . . . . Stealth | -11 -10 -10 -10 -9 -8 -7 -6 -5 -4 -4 -4 -3 -2 -1 --------- Run | Yrd Mat Min Exi Min Mat Fac Fac Fac Fac Was Fac Res Res Acc Distress Signals 7 | . . . . . 4 1 1 1 . . . . . . Communications Jammed 14 | . . . . . . . 1 13 . . . . . . Distress Signals 14 | . . . . . . . 1 13 . . . . . . Times Spotted 181 | . 22 8 . 2 47 15 13 22 3 6 24 3 6 10 Peak Tracking Total 14 | . 4 3 . 2 6 3 5 5 3 6 14 3 5 9 Tactical Retreats 11 | . 1 2 . . 1 . 1 . . 1 5 . . . Traps | -11 -10 -10 -10 -9 -8 -7 -6 -5 -4 -4 -4 -3 -2 -1 ------- Run | Yrd Mat Min Exi Min Mat Fac Fac Fac Fac Was Fac Res Res Acc Traps Triggered 16 | . 4 . . . 2 1 1 4 1 . 3 . . . Indirectly . | . . . . . . . . . . . . . . . Trap Hack Attempts . | . . . . . . . . . . . . . . . Triggered . | . . . . . . . . . . . . . . . Disarmed . | . . . . . . . . . . . . . . . Reprogrammed . | . . . . . . . . . . . . . . . Reused . | . . . . . . . . . . . . . . . Traps Extracted . | . . . . . . . . . . . . . . . Installed . | . . . . . . . . . . . . . . . Triggered . | . . . . . . . . . . . . . . . Machines | -11 -10 -10 -10 -9 -8 -7 -6 -5 -4 -4 -4 -3 -2 -1 ---------- Run | Yrd Mat Min Exi Min Mat Fac Fac Fac Fac Was Fac Res Res Acc Machines Disabled 14 | . . . . . 7 2 . 4 1 . . . . . Max in Single Turn 3 | . . . . . 3 1 . 1 1 . . . . . Garrison Access 1 | . . . . . . . . . . . 1 . . . Machines Repaired . | . . . . . . . . . . . . . . . Machines Dismantled . | . . . . . . . . . . . . . . . Machines Sabotaged . | . . . . . . . . . . . . . . . Overloaded Fab Kills . | . . . . . . . . . . . . . . . Hacking | -11 -10 -10 -10 -9 -8 -7 -6 -5 -4 -4 -4 -3 -2 -1 --------- Run | Yrd Mat Min Exi Min Mat Fac Fac Fac Fac Was Fac Res Res Acc Machines Accessed 37 | . 7 . 1 . 10 1 1 6 1 . 7 1 1 1 Terminals 21 | . 7 . . . 6 . . 6 . . 1 . . 1 Fabricators 4 | . . . . . . 1 . . 1 . 2 . . . Repair Stations 4 | . . . . . 2 . . . . . . 1 1 . Recycling Units 1 | . . . . . . . . . . . 1 . . . Scanalyzers 4 | . . . . . 1 . 1 . . . 2 . . . Garrison Access 2 | . . . . . 1 . . . . . 1 . . . Total Hacks 126 | . 28 . 1 . 30 3 7 23 4 . 25 1 2 2 Successful 67 | . 18 . 1 . 15 3 5 12 2 . 11 . . . Failed 59 | . 10 . . . 15 . 2 11 2 . 14 1 2 2 Catastrophic 9 | . 1 . . . 2 . . 1 . . 3 1 1 . Database Lockouts . | . . . . . . . . . . . . . . . Manual 99 | . 28 . 1 . 23 2 . 23 4 . 16 . . 2 Terminals 76 | . 28 . . . 21 . . 23 . . 2 . . 2 Fabricators 15 | . . . . . . 3 . . 4 . 8 . . . Repair Stations 5 | . . . . . 2 . . . . . . 1 2 . Recycling Units 6 | . . . . . . . . . . . 6 . . . Scanalyzers 17 | . . . . . 4 . 7 . . . 6 . . . Garrison Access 6 | . . . . . 3 . . . . . 3 . . . Terminal Hacks 8 | . 5 . 1 . 1 . . 1 . . . . . . Record 1 | . . . 1 . . . . . . . . . . . Part Schematic 1 | . 1 . . . . . . . . . . . . . Emergency Access Points 1 | . 1 . . . . . . . . . . . . . Terminal Index 3 | . 1 . . . 1 . . 1 . . . . . . Alert Level 1 | . 1 . . . . . . . . . . . . . Locate Traps 1 | . 1 . . . . . . . . . . . . . Fabricator Hacks 2 | . . . . . . 1 . . . . 1 . . . Network Status 2 | . . . . . . 1 . . . . 1 . . . Repair Station Hacks . | . . . . . . . . . . . . . . . Recycling Unit Hacks . | . . . . . . . . . . . . . . . Scanalyzer 12 | . . . . . 4 . 5 . . . 3 . . . Insert Component 7 | . . . . . 2 . 3 . . . 2 . . . Analyze 5 | . . . . . 2 . 2 . . . 1 . . . Garrison Access Hacks . | . . . . . . . . . . . . . . . Unauthorized Hacks 42 | . 13 . . . 9 2 . 11 2 . 5 . . . Terminals 31 | . 13 . . . 7 . . 11 . . . . . . Track 6 | . 3 . . . 1 . . 2 . . . . . . Assimilate 1 | . . . . . . . . 1 . . . . . . Botnet 10 | . 4 . . . 3 . . 3 . . . . . . Operators 3 | . 1 . . . . . . 2 . . . . . . Skim 11 | . 5 . . . 3 . . 3 . . . . . . Fabricators 6 | . . . . . . 2 . . 2 . 2 . . . Report 3 | . . . . . . 1 . . 1 . 1 . . . Liberate 2 | . . . . . . 1 . . 1 . . . . . Fabnet 1 | . . . . . . . . . . . 1 . . . Repair Stations 2 | . . . . . 2 . . . . . . . . . Patch 2 | . . . . . 2 . . . . . . . . . Recycling Units 2 | . . . . . . . . . . . 2 . . . Monitor 1 | . . . . . . . . . . . 1 . . . Recyclers 1 | . . . . . . . . . . . 1 . . . Scanalyzers . | . . . . . . . . . . . . . . . Garrison Access 1 | . . . . . . . . . . . 1 . . . Jam 1 | . . . . . . . . . . . 1 . . . Data Cores Recovered . | . . . . . . . . . . . . . . . Used . | . . . . . . . . . . . . . . . Hacking Detections 33 | . 6 . . . 8 1 1 6 1 . 7 1 1 1 Full Trace Events 8 | . . . . . 2 . 1 1 1 . 2 . 1 . Feedback Events 1 | . . . . . . . . . 1 . . . . . Corruption 1 | . . . . . . . . . 1 . . . . . Feedback Blocked . | . . . . . . . . . . . . . . . Robot Schematics Acquired . | . . . . . . . . . . . . . . . Robots Built . | . . . . . . . . . . . . . . . Authchips . | . . . . . . . . . . . . . . . Time . | . . . . . . . . . . . . . . . Total Robot Build Rating . | . . . . . . . . . . . . . . . Part Schematics Acquired 5 | . 1 . . . 1 . 2 . . . 1 . . . Parts Built . | . . . . . . . . . . . . . . . Authchips . | . . . . . . . . . . . . . . . Time . | . . . . . . . . . . . . . . . Total Part Build Rating . | . . . . . . . . . . . . . . . Parts Repaired . | . . . . . . . . . . . . . . . Time . | . . . . . . . . . . . . . . . Parts Recycled . | . . . . . . . . . . . . . . . Recycled Matter . | . . . . . . . . . . . . . . . Retrieved Matter . | . . . . . . . . . . . . . . . Retrieved Components . | . . . . . . . . . . . . . . . Parts Scanalyzed 7 | . . . . . 2 . 3 . . . 2 . . . Part Schematics Acquired 4 | . . . . . 1 . 2 . . . 1 . . . Parts Damaged . | . . . . . . . . . . . . . . . Bothacking | -11 -10 -10 -10 -9 -8 -7 -6 -5 -4 -4 -4 -3 -2 -1 ------------ Run | Yrd Mat Min Exi Min Mat Fac Fac Fac Fac Was Fac Res Res Acc Used RIF Installer . | . . . . . . . . . . . . . . . Robots Hacked . | . . . . . . . . . . . . . . . Non-combat . | . . . . . . . . . . . . . . . Combat . | . . . . . . . . . . . . . . . Robot Hacks Applied . | . . . . . . . . . . . . . . . Relay Couplers Released . | . . . . . . . . . . . . . . . Fabnet Peak Effective % 3 | . . . . . . . . . . . . 3 1 . Robots Rewired . | . . . . . . . . . . . . . . . Allies Hacked 1 | . . . . . . . . 1 . . . . . . Hacks Repelled . | . . . . . . . . . . . . . . . Allies | -11 -10 -10 -10 -9 -8 -7 -6 -5 -4 -4 -4 -3 -2 -1 -------- Run | Yrd Mat Min Exi Min Mat Fac Fac Fac Fac Was Fac Res Res Acc Total Allies 4 | . . . . 3 . . . 1 . . . . . . Largest Group 3 | . . . . 3 1 . . 1 . . . . . . Highest-Rated Group 40 | . . . . 40 16 . . 26 . . . . . . Highest-Rated Ally 26 | . . . . 16 16 . . 26 . . . . . . Total Orders . | . . . . . . . . . . . . . . . Ally Attacks 10 | . . . . 10 . . . . . . . . . . Total Damage 84 | . . . . 84 . . . . . . . . . . Kills 1 | . . . . 1 . . . . . . . . . . Allies Corrupted . | . . . . . . . . . . . . . . . Allies Melted . | . . . . . . . . . . . . . . . Intel | -11 -10 -10 -10 -9 -8 -7 -6 -5 -4 -4 -4 -3 -2 -1 ------- Run | Yrd Mat Min Exi Min Mat Fac Fac Fac Fac Was Fac Res Res Acc Robot Analysis Total . | . . . . . . . . . . . . . . . Derelict Logs Recovered 2 | . . 1 . 1 . . . . . . . . . . Drone Launches . | . . . . . . . . . . . . . . . Drone Recoveries . | . . . . . . . . . . . . . . . Exploration | -11 -10 -10 -10 -9 -8 -7 -6 -5 -4 -4 -4 -3 -2 -1 ------------- Run | Yrd Mat Min Exi Min Mat Fac Fac Fac Fac Was Fac Res Res Acc Turns Passed 10851 | 67 1497 817 566 345 1858 1519 748 1717 270 148 457 409 69 364 Spaces Moved 8380 | 35 971 660 623 366 1246 1083 366 1273 179 183 693 294 93 315 Core 865 | . . . . . . . . . . 102 558 76 55 74 Treads 61 | . . . . . . . . . . . . 61 . . Legs 1403 | 35 971 229 . . . . . . . . . 157 . 11 Wheels 5650 | . . 431 623 366 1246 1083 366 1273 179 81 2 . . . Hover 133 | . . . . . . . . . . . 133 . . . Flight 268 | . . . . . . . . . . . . . 38 230 Fastest Speed 40 | 120 120 90 90 90 93 100 105 100 115 50 40 50 45 45 Average Speed 98 | 120 120 100 90 90 100 113 115 110 115 77 48 101 56 49 Slowest Speed 250 | 120 120 120 90 90 115 115 130 130 115 115 120 180 250 200 Overloaded Moves . | . . . . . . . . . . . . . . . Propulsion Burnouts . | . . . . . . . . . . . . . . . Robots Hopped 2 | . . . . . . . . . . . . . 2 . Cave-ins Triggered . | . . . . . . . . . . . . . . . Exploration Rate (%) 43 | 3 99 98 90 90 73 27 9 33 5 94 20 6 4 7 Regions Visited 14 Branch Regions 3 Pre-discovered Areas 4 | . 4 . . . . . . . . . . . . . Known Exits Taken 3 | . 1 . . . 1 . . 1 . . . . . . Unknown Exits Taken 9 | 1 . 1 1 1 . 1 1 . . . 1 1 1 . Scrap Searched 3 | . . 2 . 1 . . . . . . . . . . Spaces Dug 21 | . 8 . . . 1 7 4 1 . . . . . . Terrain Destroyed 170 | . 20 . . . 84 11 17 22 12 . 2 1 1 . Melee 12 | . . . . . . 7 4 1 . . . . . . Projectile 90 | . 9 . . . 27 4 13 21 12 . 2 1 1 . AOE 68 | . 11 . . . 57 . . . . . . . . . Terrain Rammed . | . . . . . . . . . . . . . . . Walls Destroyed . | . . . . . . . . . . . . . . . Machines Disabled . | . . . . . . . . . . . . . . . Actions | -11 -10 -10 -10 -9 -8 -7 -6 -5 -4 -4 -4 -3 -2 -1 --------- Run | Yrd Mat Min Exi Min Mat Fac Fac Fac Fac Was Fac Res Res Acc Total 10226 | 45 1162 781 628 375 1622 1290 619 1488 216 187 805 385 102 521 Wait 1075 | 1 112 88 2 2 144 123 182 92 14 3 62 57 4 189 Move 8364 | 34 970 659 622 365 1245 1082 365 1272 179 182 692 294 88 315 Hop 2 | . . . . . . . . . . . . . 2 . Pick Up 83 | 2 2 6 . 2 34 8 7 14 3 . 2 . 1 2 Fast Attach 63 | 1 . 1 2 . 15 5 11 8 . 2 5 6 3 4 Attach 48 | . 1 . . . 17 2 6 13 4 . 2 1 . 2 Detach 5 | . . . . . 1 . . 1 . . 1 2 . . Swap 52 | . 6 6 . 1 18 9 5 7 . . . . . . Drop 79 | . 3 4 2 2 27 16 9 11 . . 2 1 1 1 Fire 347 | 7 68 17 . 3 121 37 23 36 15 . 7 10 3 . Melee 29 | . . . . . . 8 11 10 . . . . . . Ram 10 | . . . . . . . . . 1 . 2 4 . 3 Kick 5 | . . . . . . . . . . . . . . 5 Crush 10 | . . . . . . . . . . . . 10 . . Escape Stasis 54 | . . . . . . . . 24 . . 30 . . . Rewire . | . . . . . . . . . . . . . . . Trap . | . . . . . . . . . . . . . . . Miscellaneous . | . . . . . . . . . . . . . . . Route ------- -11/Scrapyard -10/Materials (discovered 6 exits: *Mat x3 / *Min x2 / Sub) -10/Mines (discovered 3 exits: *Mat x2 / *Exi) -10/Exiles -9/Mines (discovered 2 exits: *Mat x2) -8/Materials (discovered 2 exits: *Fac x2) -7/Factory -6/Factory (discovered 2 exits: *Fac x2) -5/Factory -4/Factory -4/Waste -4/Factory -3/Research -2/Research -1/Access History --------- Turn | Location | Event 1 | -11/Scrapyard | Discovered new exit (range 2) 68 | -11/Scrapyard | Entered Materials 316 | -10/Materials | Build established: Mutant 471 | -10/Materials | Discovered new exit (range 12) 576 | -10/Materials | Discovered new exit (range 15) 653 | -10/Materials | Discovered new exit (range 12) 737 | -10/Materials | Identified exit to Mines 737 | -10/Materials | Identified exit to Materials 803 | -10/Materials | Identified exit to Subcaves 827 | -10/Materials | Learned location of Subcaves (-10) 828 | -10/Materials | Learned Storage trap positions 1565 | -10/Materials | Entered Mines 1777 | -10/Mines | Found a hidden stash of uninstalled traps 1856 | -10/Mines | Received a Rocket Launcher from a helpful Derelict 1888 | -10/Mines | Learned location of 1 exit from Materials 1929 | -10/Mines | Discovered exit to Materials (range 9) 2203 | -10/Mines | Discovered exit to Materials (range 6) 2204 | -10/Mines | Met a Derelict testing a Signal Generator 2209 | -10/Mines | Found Signal Generator 2230 | -10/Mines | Deemed a non-threat by the Exiles lab entrance 2231 | -10/Mines | Discovered new exit (range 5) 2382 | -10/Mines | Entered Exiles 2382 | -10/Exiles | Found Exiles lab abandoned 2941 | -10/Exiles | Discovered new exit (range 10) 2948 | -10/Exiles | Entered Mines 3026 | -9/Mines | Discovered new exit (range 3) 3087 | -9/Mines | Assisted by bots powering up and referring to "LRC-V3" 3115 | -9/Mines | Learned location of 1 exit from Proximity Caves 3233 | -9/Mines | Discovered new exit (range 7) 3293 | -9/Mines | Entered Materials 3293 | -8/Materials | Accompanied by 1 ally 3293 | -8/Materials | Evolved 4 slots: Propulsion x2, Utility x2 3294 | -8/Materials | Identified exit to Factory 3575 | -8/Materials | Lost 5 parts (1p1n1u2w) 3588 | -8/Materials | Build established: Scavenger-Mutant 4270 | -8/Materials | Lost 3 parts (1n1u1w) 4367 | -8/Materials | Core integrity fell below 50% 4657 | -8/Materials | Discovered exit to Factory (range 3) 4789 | -8/Materials | Build established: Mutant 4821 | -8/Materials | Core integrity fell below 20% 5151 | -8/Materials | Entered Factory 5151 | -7/Factory | Evolved 2 slots: Utility x1, Weapon x1 5450 | -7/Factory | Build established: Tank 5991 | -7/Factory | Build established: Mutant 6612 | -7/Factory | Discovered new exit (range 7) 6670 | -7/Factory | Entered another Factory area 6670 | -6/Factory | Evolved 2 slots: Utility x1, Weapon x1 6995 | -6/Factory | Build established: Gunner 7236 | -6/Factory | Lost 3 parts (1n2u) 7239 | -6/Factory | Discovered new exit (range 15) 7407 | -6/Factory | Discovered new exit (range 9) 7418 | -6/Factory | Entered another Factory area 7418 | -5/Factory | Evolved 2 slots: Utility x2 7835 | -5/Factory | Lost 4 parts (1p3u) 8105 | -5/Factory | Build established: Scavenger-Gunner 8599 | -5/Factory | Garrison activated, responded to threat 8762 | -5/Factory | Found Prototype Processor 8762 | -5/Factory | Identified Exp. Targeting Computer 8936 | -5/Factory | Spotted B-75 Beast 8963 | -5/Factory | Destroyed B-75 Beast 9046 | -5/Factory | Discovered new exit (range 15) 9066 | -5/Factory | Identified exit to Factory 9135 | -5/Factory | Entered another Factory area 9135 | -4/Factory | Evolved 2 slots: Power x1, Utility x1 9405 | -4/Factory | Sucked down chute 9405 | -4/Factory | Entered Waste 9420 | -4/Waste | EMP discharged 9420 | -4/Waste | Lost 3 parts (1u2w) 9420 | -4/Waste | System corruption reached 10% 9430 | -4/Waste | Spotted C-40 Crusher 9438 | -4/Waste | Spotted C-40 Crusher 9478 | -4/Waste | Spotted C-40 Crusher 9489 | -4/Waste | Crushed by Compactor (1 part destroyed, 2 dropped) 9490 | -4/Waste | Crushed by Compactor (1 part destroyed, 1 dropped) 9495 | -4/Waste | Spotted C-40 Crusher 9497 | -4/Waste | Spotted C-40 Crusher 9500 | -4/Waste | Crushed by Compactor (1 part destroyed, 1 dropped) 9503 | -4/Waste | Crushed by Compactor (1 part destroyed) 9506 | -4/Waste | Crushed by Compactor (1 part destroyed, 2 dropped) 9520 | -4/Waste | EMP discharged 9525 | -4/Waste | Spotted C-40 Crusher 9537 | -4/Waste | Lost 7 parts (1p2n3u1w) 9548 | -4/Waste | Discovered new exit (range 11) 9553 | -4/Waste | Entered Factory 9617 | -4/Factory | Spotted B-86 Titan 9693 | -4/Factory | Spotted B-86 Titan 9797 | -4/Factory | Build established: Mutant 9994 | -4/Factory | Core integrity fell below 50% 10002 | -4/Factory | Discovered new exit (range 16) 10010 | -4/Factory | Entered Research 10010 | -3/Research | Evolved 2 slots: Propulsion x2 10020 | -3/Research | Discovered new exit (range 16) 10030 | -3/Research | Lost 5 parts (2n2u1w) 10395 | -3/Research | System corruption reached 10% 10419 | -3/Research | Entered another Research area 10419 | -2/Research | Evolved 2 slots: Utility x2 10437 | -2/Research | Lost 3 parts (2n1w) 10474 | -2/Research | Discovered new exit (range 14) 10488 | -2/Research | Entered Access 10488 | -1/Access | Evolved 2 slots: Utility x2 10804 | -1/Access | Core integrity fell below 50% 10820 | -1/Access | Lost 3 parts (1n2u) 10822 | -1/Access | Core integrity fell below 20% 10852 | -1/Access | Destroyed by S-43 Plague with Heavy Machine Gun Last Messages --------------- 10789_ Dropped Mic. Antimatter Reactor. 10795_ Slammed into G-73 Enforcer. 10795_ Armor Integrity Analyzer broken. 10795_ Destabilizing: Short circuit. 10813_ Slammed into S-43 Plague. 10823_ Acquired Biometal Leg. 10824_ Penetrated by Slug. 10824_ Slug penetrates Wall. 10826_ Acquired Biometal Leg. 10829_ Slug penetrates Wall. 10836_ Slug penetrates Terminal. 10837_ Kicked S-43 Plague out of the way. 10838_ Graphene Brace destroyed. 10838_ Kicked G-73 Enforcer. 10839_ Biometal Leg destroyed. 10839_ Slug penetrates S-43 Plague. 10840_ Kicked G-73 Enforcer. 10841_ Kicked G-73 Enforcer out of the way. 10842_ Biometal Leg destroyed. 10851_ Acquired Enh. Nova Cannon. Map ----- +----------------------------------------------------+ | ??????????????????????????????# """"" # | | ??????????????????????????????# """"" # | | ??????????????????????????????############## | | ????????????????????????#################### | | ????????????????????????# # | | ????????????????????????# # | | ????????????????????????# """"" # | | ????????????????????????#"""""""" # | | ????????????????????????#"""""""" # | | ????????????????????????# """"" + | | ????????????????????????# # | | ?????????????? ?????????# * # | | ????????????? ############################ | | ????????????? | | ????????????? | | ???????????? | | ???????????? | | ??????????? | | ??????????? ss | | ??????????? s | | ???????????????###########s######/######/######### | | ???????????????# # #???????# | | ???????????????# # #???????# | | ???????????????# # #???????# | | ???????????????# #"" ##??????# | | ???????????????# """"" @ #"" #??????# | | ???????????????# """"" #"" ##??????# | | ???????????????# """"" = #T ! #???????# | | ???????????????????""""" #"" #???????# | | ????????????????????"""" #"" #????#### | | ????????????????????"""" #"" #????# | | ???????????????????? # #????# | | ????????????????????? # #????# | | ?????????????????????#####################????# | | ??????????????????????????????????????????????# | | ??????????????????????????????????????????????# | | ??????????????????????????????????????????????# | | ??????????????????????????????????????????????# | | ??????????????????????????????????????????????# | | ??????????????????????????????????????????????#### | | ?????????????????????????????????????????????????? | | ?????????????????????????????????????????????????? | | ?????????????????????????????????????????????????? | | ?????????????????????????????????????????????????? | | ?????????????????????????????????????????????????? | | ?????????????????????????????????????????????????? | | ?????????????????????????????????????????????????? | | ?????????????????????????????????????????????????? | | ?????????????????????????????????????????????????? | | ?????????????????????????????????????????????????? | +----------------------------------------------------+ Best States ------------- Heat Dissipation 64 Energy Generation 26 Energy Capacity 340 Matter Stores 450 Matter Capacity 450 Sight Range 16 Robot Scan Range 16 Terrain Scan Density 10 Jamming Range 14 Base Temperature (-) 200 EM Shielding 2 Armor Coverage 375 Resistance: TH 15 Weapon Shielding 66 Phase Shifting 5 Evasion (%) 61 Targeting Accuracy 8 Target Analysis 6 Core Analysis 9 Armor Integrity Analysis 30 Recoil Reduction 6 Kinecelleration 40 Salvage Targeting 2 Item Schematics ----------------- Seismic Detector | -10/Materials | Hacked Core Analyzer | -8/Materials | Scanalyzed Welding Torch | -6/Factory | Scanalyzed Plasma Cutter | -6/Factory | Scanalyzed Imp. Plasma Cutter | -4/Factory | Scanalyzed Robot Schematics ------------------ None Fabricated ------------ Nothing Alien Tech Used ----------------- None Achievements -------------- None Challenges ------------ None Game ------ Seed DeuteriumBurstRecalibrator Manual? 0 Play Time 03:57:46 Cumulative 281.6 hours Start 2024.10.27 @ 11:24:42 End 2024.10.31 @ 05:41:53 Sessions 5 Manual Loads 0 Difficulty Rogue Special Mode None Game No. 182 Rogue 165 Adventurer 11 Explorer 6 Win Type - Total 4 Types 4/0/0/0/0/0/0/0/0 Lore% 42 Gallery% 60 Achievement% 49 Wizard Run 0 Options --------- Layout 0 ASCII 0 Keyboard 0 Movement Numpad Keybinds 0 Fullscreen 2 Font 24/Smallcaps Map View 113x50 Zoom Use 0% Tactical HUD 1 Map Filters NONE Filters NONE Steam 1 RUN: 3d45f3a6-69f5-47c7-8aad-72778bc0414e